[Event "Titled Tuesday Blitz December 06 Early 2022"]
[White "Wong, Yinn Long"]
[Black "Berezin, Viktor"]
[WhiteFideId "5707684"]
[BlackFideId "14107872"]
[WhiteElo "2271"]
[BlackElo "2310"]
[Result "1/2-1/2"]
[Round "02"]
[TimeControl "180+1"]
[Date "2022.12.07"]
[WhiteClock "0:01:43"]
[BlackClock "0:01:00"]

1. d4 {[%clk 0:03:00]}  Nf6 {[%clk 0:02:57]} 2. c4 {[%clk 0:03:01]}  g6 {[%clk 0:02:56]} 3. Nf3 {[%clk 0:03:00]}  Bg7 {[%clk 0:02:56]} 4. g3 {[%clk 0:03:01]}  O-O {[%clk 0:02:56]} 5. Bg2 {[%clk 0:03:02]}  d6 {[%clk 0:02:56]} 6. O-O {[%clk 0:03:02]}  Nc6 {[%clk 0:02:57]} 7. Nc3 {[%clk 0:03:02]}  a6 {[%clk 0:02:57]} 8. Bf4 {[%clk 0:02:59]}  Rb8 {[%clk 0:02:57]} 9. Rc1 {[%clk 0:02:59]}  b5 {[%clk 0:02:57]} 10. Nd5 {[%clk 0:02:59]}  bxc4 {[%clk 0:02:49]} 11. Nxf6+ {[%clk 0:02:59]}  Bxf6 {[%clk 0:02:50]} 12. Rxc4 {[%clk 0:02:59]}  Bd7 {[%clk 0:02:46]} 13. Qc1 {[%clk 0:02:53]}  Rb6 {[%clk 0:02:39]} 14. Bg5 {[%clk 0:02:42]}  e6 {[%clk 0:02:17]} 15. Bxf6 {[%clk 0:02:37]}  Qxf6 {[%clk 0:02:18]} 16. b3 {[%clk 0:02:37]}  Rfb8 {[%clk 0:02:13]} 17. e3 {[%clk 0:02:35]}  d5 {[%clk 0:02:12]} 18. Rc5 {[%clk 0:02:35]}  R8b7 {[%clk 0:02:05]} 19. Qc3 {[%clk 0:02:34]}  Na7 {[%clk 0:02:02]} 20. Ne5 {[%clk 0:02:29]}  Be8 {[%clk 0:01:54]} 21. Rxc7 {[%clk 0:02:05]}  Nb5 {[%clk 0:01:49]} 22. Rxb7 {[%clk 0:02:05]}  Nxc3 {[%clk 0:01:37]} 23. Rxb6 {[%clk 0:02:05]}  Bb5 {[%clk 0:01:37]} 24. Rb8+ {[%clk 0:02:01]}  Kg7 {[%clk 0:01:37]} 25. Re1 {[%clk 0:02:00]}  Ne2+ {[%clk 0:01:35]} 26. Kh1 {[%clk 0:01:58]}  Qxf2 {[%clk 0:01:29]} 27. Rd1 {[%clk 0:01:46]}  Nc3 {[%clk 0:01:16]} 28. Rg1 {[%clk 0:01:45]}  Ne2 {[%clk 0:01:12]} 29. Rd1 {[%clk 0:01:44]}  Nc3 {[%clk 0:01:00]} 30. Rg1 {[%clk 0:01:43]}  Ne2 {[%clk 0:01:00]} 31. Rd1 {[%clk 0:01:43]} 1/2-1/2


[Site "https://www.chess.com"]

[Event "Titled Tuesday Blitz December 06 Early 2022"]
[White "Xie, Bryan"]
[Black "Yeletsky, Ivan"]
[WhiteFideId "30941296"]
[BlackFideId "24180327"]
[WhiteElo "2033"]
[BlackElo "2391"]
[Result "0-1"]
[Round "02"]
[TimeControl "180+1"]
[Date "2022.12.07"]
[WhiteClock "0:00:06"]
[BlackClock "0:01:51"]

1. d4 {[%clk 0:02:51]}  d5 {[%clk 0:02:58]} 2. Nf3 {[%clk 0:02:51]}  e6 {[%clk 0:02:57]} 3. Bf4 {[%clk 0:02:52]}  Bd6 {[%clk 0:02:56]} 4. e3 {[%clk 0:02:51]}  Bxf4 {[%clk 0:02:56]} 5. exf4 {[%clk 0:02:52]}  Qd6 {[%clk 0:02:56]} 6. g3 {[%clk 0:02:52]}  Qb4+ {[%clk 0:02:55]} 7. Nc3 {[%clk 0:02:08]}  Qxb2 {[%clk 0:02:56]} 8. Nb5 {[%clk 0:01:45]}  Qb4+ {[%clk 0:02:54]} 9. c3 {[%clk 0:01:45]}  Qa5 {[%clk 0:02:55]} 10. Qb3 {[%clk 0:01:34]}  Nf6 {[%clk 0:02:50]} 11. Bd3 {[%clk 0:01:34]}  O-O {[%clk 0:02:45]} 12. O-O {[%clk 0:01:33]}  a6 {[%clk 0:02:44]} 13. Na3 {[%clk 0:01:33]}  c5 {[%clk 0:02:45]} 14. c4 {[%clk 0:01:26]}  b5 {[%clk 0:02:42]} 15. dxc5 {[%clk 0:00:52]}  bxc4 {[%clk 0:02:39]} 16. Bxc4 {[%clk 0:00:52]}  dxc4 {[%clk 0:02:39]} 17. Nxc4 {[%clk 0:00:53]}  Qxc5 {[%clk 0:02:39]} 18. Nb6 {[%clk 0:00:54]}  Bb7 {[%clk 0:02:32]} 19. Nxa8 {[%clk 0:00:53]}  Bxa8 {[%clk 0:02:32]} 20. Ne5 {[%clk 0:00:45]}  Nc6 {[%clk 0:02:28]} 21. Rac1 {[%clk 0:00:40]}  Nd4 {[%clk 0:02:28]} 22. Qd3 {[%clk 0:00:36]}  Qd5 {[%clk 0:02:27]} 23. f3 {[%clk 0:00:31]}  h5 {[%clk 0:02:14]} 24. Rcd1 {[%clk 0:00:17]}  Nf5 {[%clk 0:02:13]} 25. Qxd5 {[%clk 0:00:06]}  Bxd5 {[%clk 0:02:14]} 26. Rd2 {[%clk 0:00:03]}  Rb8 {[%clk 0:02:13]} 27. Rc1 {[%clk 0:00:04]}  Rb7 {[%clk 0:02:10]} 28. Rdc2 {[%clk 0:00:04]}  Nd4 {[%clk 0:02:05]} 29. Rc7 {[%clk 0:00:04]}  Ne2+ {[%clk 0:02:05]} 30. Kf2 {[%clk 0:00:04]}  Nxc1 {[%clk 0:02:06]} 31. Rc8+ {[%clk 0:00:04]}  Kh7 {[%clk 0:02:06]} 32. Rxc1 {[%clk 0:00:04]}  Rb2+ {[%clk 0:02:06]} 33. Ke3 {[%clk 0:00:04]}  Bxa2 {[%clk 0:02:00]} 34. Nxf7 {[%clk 0:00:05]}  Rb7 {[%clk 0:01:54]} 35. Ng5+ {[%clk 0:00:05]}  Kg6 {[%clk 0:01:54]} 36. Rc6 {[%clk 0:00:05]}  a5 {[%clk 0:01:51]} 37. Nxe6 {[%clk 0:00:03]}  Bxe6 {[%clk 0:01:50]} 38. Rxe6 {[%clk 0:00:03]}  Ra7 {[%clk 0:01:50]} 39. g4 {[%clk 0:00:02]}  Kf7 {[%clk 0:01:49]} 40. f5 {[%clk 0:00:02]}  hxg4 {[%clk 0:01:49]} 41. fxg4 {[%clk 0:00:03]}  Nxg4+ {[%clk 0:01:49]} 42. Kf4 {[%clk 0:00:04]}  Nf6 {[%clk 0:01:50]} 43. Re5 {[%clk 0:00:04]}  a4 {[%clk 0:01:50]} 44. Re1 {[%clk 0:00:05]}  a3 {[%clk 0:01:51]} 45. Ra1 {[%clk 0:00:06]}  a2 {[%clk 0:01:51]} 0-1


[Site "https://www.chess.com"]

[Event "Titled Tuesday Blitz December 06 Early 2022"]
[White "Yaran, Siar"]
[Black "Pranesh M"]
[WhiteFideId "6323006"]
[BlackFideId "35028600"]
[WhiteElo "2191"]
[BlackElo "2403"]
[Result "0-1"]
[Round "02"]
[TimeControl "180+1"]
[Date "2022.12.06"]
[WhiteClock "0:00:05"]
[BlackClock "0:00:23"]

1. d4 {[%clk 0:03:00]}  d5 {[%clk 0:02:56]} 2. c4 {[%clk 0:03:00]}  c6 {[%clk 0:02:55]} 3. Nc3 {[%clk 0:03:00]}  Nf6 {[%clk 0:02:54]} 4. Nf3 {[%clk 0:03:00]}  e6 {[%clk 0:02:55]} 5. e3 {[%clk 0:03:00]}  Nbd7 {[%clk 0:02:55]} 6. b3 {[%clk 0:02:59]}  Bd6 {[%clk 0:02:54]} 7. Be2 {[%clk 0:02:57]}  O-O {[%clk 0:02:54]} 8. O-O {[%clk 0:02:58]}  Ne4 {[%clk 0:02:55]} 9. Bb2 {[%clk 0:02:58]}  f5 {[%clk 0:02:55]} 10. Qc1 {[%clk 0:02:54]}  Rf6 {[%clk 0:02:53]} 11. g3 {[%clk 0:02:46]}  Rh6 {[%clk 0:02:48]} 12. Nd1 {[%clk 0:02:41]}  Qf6 {[%clk 0:02:45]} 13. Ba3 {[%clk 0:02:39]}  Bc7 {[%clk 0:02:42]} 14. Nb2 {[%clk 0:02:40]}  g5 {[%clk 0:02:34]} 15. Nd3 {[%clk 0:02:38]}  g4 {[%clk 0:02:26]} 16. Nd2 {[%clk 0:02:28]}  Qg5 {[%clk 0:02:16]} 17. Nf4 {[%clk 0:02:11]}  Ndf6 {[%clk 0:02:07]} 18. Nxe4 {[%clk 0:02:00]}  fxe4 {[%clk 0:01:47]} 19. Be7 {[%clk 0:01:55]}  Bxf4 {[%clk 0:01:29]} 20. exf4 {[%clk 0:01:53]}  Qf5 {[%clk 0:01:28]} 21. Qd1 {[%clk 0:01:47]}  Rg6 {[%clk 0:01:16]} 22. Bxf6 {[%clk 0:01:44]}  Qxf6 {[%clk 0:01:17]} 23. Bxg4 {[%clk 0:01:44]}  Bd7 {[%clk 0:01:17]} 24. Kh1 {[%clk 0:01:39]}  Kh8 {[%clk 0:01:17]} 25. Bh3 {[%clk 0:01:35]}  Rh6 {[%clk 0:01:07]} 26. Bg2 {[%clk 0:01:35]}  Be8 {[%clk 0:01:08]} 27. f3 {[%clk 0:01:29]}  Bh5 {[%clk 0:01:02]} 28. g4 {[%clk 0:01:25]}  Qh4 {[%clk 0:00:59]} 29. Qe1 {[%clk 0:01:02]}  Bf7 {[%clk 0:00:47]} 30. Qxh4 {[%clk 0:00:57]}  Rxh4 {[%clk 0:00:48]} 31. h3 {[%clk 0:00:56]}  h5 {[%clk 0:00:47]} 32. g5 {[%clk 0:00:43]}  e3 {[%clk 0:00:46]} 33. f5 {[%clk 0:00:35]}  Rxd4 {[%clk 0:00:33]} 34. g6 {[%clk 0:00:14]}  Be8 {[%clk 0:00:23]} 35. fxe6 {[%clk 0:00:12]}  Bxg6 {[%clk 0:00:23]} 36. Rae1 {[%clk 0:00:12]}  Rd3 {[%clk 0:00:23]} 37. cxd5 {[%clk 0:00:13]}  cxd5 {[%clk 0:00:23]} 38. f4 {[%clk 0:00:13]}  Bf5 {[%clk 0:00:24]} 39. Rf3 {[%clk 0:00:12]}  d4 {[%clk 0:00:23]} 40. Rg3 {[%clk 0:00:13]}  Rg8 {[%clk 0:00:22]} 41. e7 {[%clk 0:00:10]}  Bd7 {[%clk 0:00:22]} 42. Rxg8+ {[%clk 0:00:10]}  Kxg8 {[%clk 0:00:23]} 43. Bd5+ {[%clk 0:00:10]}  Kg7 {[%clk 0:00:23]} 44. Rg1+ {[%clk 0:00:11]}  Kf6 {[%clk 0:00:24]} 45. Bc4 {[%clk 0:00:05]}  Rd2 {[%clk 0:00:23]} 46. f5 {[%clk 0:00:05]}  Bc6+ {[%clk 0:00:23]} 0-1


[Site "https://www.chess.com"]

[Event "Titled Tuesday Blitz December 06 Early 2022"]
[White "Yilmaz, Mustafa"]
[Black "Colas, Joshua"]
[WhiteFideId "6302718"]
[BlackFideId "2044447"]
[WhiteElo "2564"]
[BlackElo "2347"]
[Result "1-0"]
[Round "02"]
[TimeControl "180+1"]
[Date "2022.12.06"]
[WhiteClock "0:01:39"]
[BlackClock "0:00:50"]

1. d4 {[%clk 0:03:00]}  Nf6 {[%clk 0:02:43]} 2. c4 {[%clk 0:03:01]}  e6 {[%clk 0:02:43]} 3. Nc3 {[%clk 0:03:01]}  Bb4 {[%clk 0:02:43]} 4. Qc2 {[%clk 0:03:01]}  O-O {[%clk 0:02:43]} 5. a3 {[%clk 0:03:01]}  Bxc3+ {[%clk 0:02:44]} 6. Qxc3 {[%clk 0:03:02]}  b6 {[%clk 0:02:43]} 7. Nf3 {[%clk 0:02:57]}  Bb7 {[%clk 0:02:43]} 8. g3 {[%clk 0:02:58]}  d6 {[%clk 0:02:41]} 9. Bg2 {[%clk 0:02:58]}  Nbd7 {[%clk 0:02:42]} 10. O-O {[%clk 0:02:58]}  Qe7 {[%clk 0:02:40]} 11. b4 {[%clk 0:02:54]}  c5 {[%clk 0:02:40]} 12. Bb2 {[%clk 0:02:52]}  Rac8 {[%clk 0:02:37]} 13. dxc5 {[%clk 0:02:48]}  bxc5 {[%clk 0:02:36]} 14. b5 {[%clk 0:02:47]}  d5 {[%clk 0:02:36]} 15. e3 {[%clk 0:02:43]}  dxc4 {[%clk 0:02:27]} 16. a4 {[%clk 0:02:41]}  Bd5 {[%clk 0:02:06]} 17. Rfe1 {[%clk 0:02:41]}  Nb6 {[%clk 0:02:01]} 18. e4 {[%clk 0:02:37]}  Ba8 {[%clk 0:01:55]} 19. a5 {[%clk 0:02:36]}  Nbd7 {[%clk 0:01:55]} 20. Qxc4 {[%clk 0:02:34]}  e5 {[%clk 0:01:46]} 21. Nh4 {[%clk 0:02:29]}  g6 {[%clk 0:01:46]} 22. Bh3 {[%clk 0:02:22]}  Rfd8 {[%clk 0:01:37]} 23. Ng2 {[%clk 0:02:19]}  Rb8 {[%clk 0:01:34]} 24. f3 {[%clk 0:02:16]}  Nf8 {[%clk 0:01:35]} 25. Ne3 {[%clk 0:02:11]}  Ne6 {[%clk 0:01:21]} 26. Bxe6 {[%clk 0:02:07]}  fxe6 {[%clk 0:01:07]} 27. Bxe5 {[%clk 0:02:07]}  Rbc8 {[%clk 0:01:06]} 28. Rad1 {[%clk 0:02:02]}  Nd7 {[%clk 0:01:05]} 29. Bb2 {[%clk 0:01:53]}  h5 {[%clk 0:01:05]} 30. Qc3 {[%clk 0:01:41]}  e5 {[%clk 0:00:57]} 31. Nc4 {[%clk 0:01:42]}  Qf6 {[%clk 0:00:51]} 32. Rd6 {[%clk 0:01:39]}  Qg7 {[%clk 0:00:50]} 33. Red1 {[%clk 0:01:39]} 1-0


[Site "https://www.chess.com"]

[Event "Titled Tuesday Blitz December 06 Early 2022"]
[White "Zemlyanskii, Ivan"]
[Black "Decuigniere, Tom"]
[WhiteFideId "24249971"]
[BlackFideId "26093820"]
[WhiteElo "2107"]
[BlackElo "2288"]
[Result "1-0"]
[Round "02"]
[TimeControl "180+1"]
[Date "2022.12.07"]
[WhiteClock "0:00:24"]
[BlackClock "0:00:05"]

1. d4 {[%clk 0:02:57]}  Nf6 {[%clk 0:03:00]} 2. c4 {[%clk 0:02:57]}  e6 {[%clk 0:02:59]} 3. Nf3 {[%clk 0:02:57]}  Bb4+ {[%clk 0:02:59]} 4. Bd2 {[%clk 0:02:55]}  Qe7 {[%clk 0:02:57]} 5. g3 {[%clk 0:02:51]}  Nc6 {[%clk 0:02:54]} 6. b3 {[%clk 0:02:48]}  Bxd2+ {[%clk 0:02:49]} 7. Qxd2 {[%clk 0:02:49]}  O-O {[%clk 0:02:46]} 8. Bg2 {[%clk 0:02:47]}  d5 {[%clk 0:02:45]} 9. O-O {[%clk 0:02:46]}  dxc4 {[%clk 0:02:44]} 10. bxc4 {[%clk 0:02:46]}  Rd8 {[%clk 0:02:44]} 11. Qb2 {[%clk 0:02:39]}  Qb4 {[%clk 0:02:42]} 12. Qxb4 {[%clk 0:02:30]}  Nxb4 {[%clk 0:02:43]} 13. Nc3 {[%clk 0:02:31]}  c5 {[%clk 0:02:38]} 14. dxc5 {[%clk 0:02:22]}  Bd7 {[%clk 0:02:16]} 15. Ne5 {[%clk 0:02:19]}  Nc6 {[%clk 0:02:02]} 16. Bxc6 {[%clk 0:02:07]}  Bxc6 {[%clk 0:02:00]} 17. Rfd1 {[%clk 0:02:04]}  Kf8 {[%clk 0:01:56]} 18. Rd6 {[%clk 0:01:54]}  Ne8 {[%clk 0:01:46]} 19. Nxc6 {[%clk 0:01:54]}  bxc6 {[%clk 0:01:32]} 20. Rxc6 {[%clk 0:01:54]}  Rac8 {[%clk 0:01:28]} 21. Rxc8 {[%clk 0:01:52]}  Rxc8 {[%clk 0:01:28]} 22. Na4 {[%clk 0:01:53]}  Nf6 {[%clk 0:01:16]} 23. Rb1 {[%clk 0:01:46]}  Ne4 {[%clk 0:01:15]} 24. Rb5 {[%clk 0:01:42]}  Rc7 {[%clk 0:01:07]} 25. f3 {[%clk 0:01:38]}  Nf6 {[%clk 0:00:58]} 26. Nb2 {[%clk 0:01:32]}  Nd7 {[%clk 0:00:55]} 27. Nd3 {[%clk 0:01:32]}  Ke7 {[%clk 0:00:54]} 28. e4 {[%clk 0:01:30]}  f6 {[%clk 0:00:43]} 29. Kf2 {[%clk 0:01:30]}  a6 {[%clk 0:00:41]} 30. Ra5 {[%clk 0:01:30]}  Nb8 {[%clk 0:00:42]} 31. Ke3 {[%clk 0:01:27]}  Kd7 {[%clk 0:00:37]} 32. Nb4 {[%clk 0:01:25]}  Ra7 {[%clk 0:00:26]} 33. f4 {[%clk 0:01:18]}  Kc7 {[%clk 0:00:22]} 34. h4 {[%clk 0:01:13]}  Nc6 {[%clk 0:00:15]} 35. Nxc6 {[%clk 0:01:08]}  Kxc6 {[%clk 0:00:15]} 36. h5 {[%clk 0:01:06]}  h6 {[%clk 0:00:14]} 37. g4 {[%clk 0:01:06]}  Ra8 {[%clk 0:00:14]} 38. Kd4 {[%clk 0:00:57]}  Rd8+ {[%clk 0:00:13]} 39. Kc3 {[%clk 0:00:57]}  Ra8 {[%clk 0:00:14]} 40. e5 {[%clk 0:00:37]}  fxe5 {[%clk 0:00:14]} 41. fxe5 {[%clk 0:00:35]}  Ra7 {[%clk 0:00:14]} 42. Kd4 {[%clk 0:00:33]}  Rd7+ {[%clk 0:00:14]} 43. Ke4 {[%clk 0:00:33]}  Ra7 {[%clk 0:00:12]} 44. Kf4 {[%clk 0:00:32]}  Rf7+ {[%clk 0:00:12]} 45. Kg3 {[%clk 0:00:32]}  Ra7 {[%clk 0:00:13]} 46. Kh4 {[%clk 0:00:33]}  Ra8 {[%clk 0:00:12]} 47. g5 {[%clk 0:00:32]}  Ra7 {[%clk 0:00:13]} 48. Kg4 {[%clk 0:00:31]}  Ra8 {[%clk 0:00:12]} 49. g6 {[%clk 0:00:31]}  Ra7 {[%clk 0:00:12]} 50. Ra3 {[%clk 0:00:28]}  Kxc5 {[%clk 0:00:12]} 51. Rf3 {[%clk 0:00:29]}  Rd7 {[%clk 0:00:09]} 52. Rf7 {[%clk 0:00:27]}  Rd4+ {[%clk 0:00:09]} 53. Kg3 {[%clk 0:00:26]}  Rd3+ {[%clk 0:00:09]} 54. Kf4 {[%clk 0:00:24]}  Rh3 {[%clk 0:00:08]} 55. Kg4 {[%clk 0:00:24]}  Re3 {[%clk 0:00:04]} 56. Rxg7 {[%clk 0:00:25]}  Rxe5 {[%clk 0:00:04]} 57. Rh7 {[%clk 0:00:23]}  Re4+ {[%clk 0:00:02]} 58. Kf3 {[%clk 0:00:23]}  Re5 {[%clk 0:00:02]} 59. Rxh6 {[%clk 0:00:23]}  Kxc4 {[%clk 0:00:03]} 60. Rh7 {[%clk 0:00:23]}  Rf5+ {[%clk 0:00:04]} 61. Ke4 {[%clk 0:00:23]}  Rg5 {[%clk 0:00:04]} 62. g7 {[%clk 0:00:24]}  Rg4+ {[%clk 0:00:05]} 63. Ke5 {[%clk 0:00:24]}  Rxg7 {[%clk 0:00:05]} 64. Rxg7 {[%clk 0:00:24]} 1-0


[Site "https://www.chess.com"]

[Event "Titled Tuesday Blitz December 06 Early 2022"]
[White "monkins"]
[Black "Mahajan, Rushaan"]
[BlackFideId "30934222"]
[WhiteElo "2230"]
[BlackElo "2148"]
[Result "1/2-1/2"]
[Round "02"]
[TimeControl "180+1"]
[Date "2022.12.07"]
[WhiteClock "0:00:07"]
[BlackClock "0:00:09"]

1. Nf3 {[%clk 0:02:59]}  d5 {[%clk 0:02:50]} 2. c4 {[%clk 0:02:59]}  d4 {[%clk 0:02:50]} 3. b4 {[%clk 0:02:59]}  Nf6 {[%clk 0:02:50]} 4. g3 {[%clk 0:02:58]}  c5 {[%clk 0:02:50]} 5. b5 {[%clk 0:02:58]}  b6 {[%clk 0:02:49]} 6. Bg2 {[%clk 0:02:57]}  Bb7 {[%clk 0:02:50]} 7. d3 {[%clk 0:02:56]}  Nbd7 {[%clk 0:02:49]} 8. a4 {[%clk 0:02:56]}  a5 {[%clk 0:02:48]} 9. bxa6 {[%clk 0:02:55]}  Rxa6 {[%clk 0:02:48]} 10. Na3 {[%clk 0:02:54]}  e6 {[%clk 0:02:42]} 11. Nb5 {[%clk 0:02:53]}  Be7 {[%clk 0:02:41]} 12. Bf4 {[%clk 0:02:43]}  O-O {[%clk 0:02:40]} 13. O-O {[%clk 0:02:32]}  Re8 {[%clk 0:02:29]} 14. Bd6 {[%clk 0:02:23]}  Nf8 {[%clk 0:02:22]} 15. Bxe7 {[%clk 0:02:23]}  Rxe7 {[%clk 0:02:22]} 16. e3 {[%clk 0:01:54]}  e5 {[%clk 0:02:19]} 17. exd4 {[%clk 0:01:54]}  cxd4 {[%clk 0:02:19]} 18. Re1 {[%clk 0:01:43]}  Ng6 {[%clk 0:02:18]} 19. Qb3 {[%clk 0:01:28]}  Nd7 {[%clk 0:02:13]} 20. Qc2 {[%clk 0:01:10]}  Nc5 {[%clk 0:02:11]} 21. Nd2 {[%clk 0:01:09]}  Bxg2 {[%clk 0:02:08]} 22. Kxg2 {[%clk 0:01:10]}  Qa8+ {[%clk 0:02:08]} 23. Kg1 {[%clk 0:01:08]}  Rxa4 {[%clk 0:02:07]} 24. Rxa4 {[%clk 0:01:05]}  Qxa4 {[%clk 0:02:08]} 25. Qxa4 {[%clk 0:01:05]}  Nxa4 {[%clk 0:02:08]} 26. Ra1 {[%clk 0:01:01]}  Nc5 {[%clk 0:02:08]} 27. Ra3 {[%clk 0:00:49]}  h5 {[%clk 0:02:04]} 28. f3 {[%clk 0:00:48]}  h4 {[%clk 0:01:58]} 29. Ne4 {[%clk 0:00:48]}  Nxe4 {[%clk 0:01:54]} 30. fxe4 {[%clk 0:00:49]}  h3 {[%clk 0:01:50]} 31. Ra8+ {[%clk 0:00:38]}  Kh7 {[%clk 0:01:50]} 32. Rb8 {[%clk 0:00:39]}  Re6 {[%clk 0:01:51]} 33. Nc7 {[%clk 0:00:34]}  Rf6 {[%clk 0:01:50]} 34. Nd5 {[%clk 0:00:27]}  Rf3 {[%clk 0:01:50]} 35. Nb4 {[%clk 0:00:27]}  Re3 {[%clk 0:01:45]} 36. Rxb6 {[%clk 0:00:27]}  Re1+ {[%clk 0:01:44]} 37. Kf2 {[%clk 0:00:25]}  Rh1 {[%clk 0:01:45]} 38. c5 {[%clk 0:00:20]}  Rxh2+ {[%clk 0:01:46]} 39. Kg1 {[%clk 0:00:17]}  Rg2+ {[%clk 0:01:38]} 40. Kh1 {[%clk 0:00:17]}  Rxg3 {[%clk 0:01:38]} 41. c6 {[%clk 0:00:12]}  Nh4 {[%clk 0:01:39]} 42. Kh2 {[%clk 0:00:10]}  Rg6 {[%clk 0:01:28]} 43. Nd5 {[%clk 0:00:07]}  Nf3+ {[%clk 0:01:27]} 44. Kxh3 {[%clk 0:00:07]}  Ng1+ {[%clk 0:01:18]} 45. Kh2 {[%clk 0:00:07]}  Nf3+ {[%clk 0:01:17]} 46. Kh3 {[%clk 0:00:08]}  Rg1 {[%clk 0:01:12]} 47. c7 {[%clk 0:00:07]}  Ng5+ {[%clk 0:01:04]} 48. Kh2 {[%clk 0:00:07]}  Nf3+ {[%clk 0:01:04]} 49. Kh3 {[%clk 0:00:07]}  Ng5+ {[%clk 0:00:26]} 50. Kh2 {[%clk 0:00:07]}  Nf3+ {[%clk 0:00:09]} 51. Kh3 {[%clk 0:00:07]} 1/2-1/2


[Site "https://www.chess.com"]

[Event "Titled Tuesday Blitz December 06 Early 2022"]
[White "Agasarov, Benik"]
[Black "Zhigalko, Sergei"]
[WhiteFideId "13314823"]
[BlackFideId "13502956"]
[WhiteElo "2179"]
[BlackElo "2662"]
[Result "1-0"]
[Round "03"]
[TimeControl "180+1"]
[Date "2022.12.06"]
[WhiteClock "0:00:41"]
[BlackClock "0:00:03"]

1. d4 {[%clk 0:02:59]}  Nf6 {[%clk 0:02:57]} 2. c4 {[%clk 0:02:58]}  e6 {[%clk 0:02:58]} 3. Nc3 {[%clk 0:02:55]}  Bb4 {[%clk 0:02:58]} 4. Nf3 {[%clk 0:02:56]}  b6 {[%clk 0:02:58]} 5. Bd2 {[%clk 0:02:55]}  O-O {[%clk 0:02:56]} 6. g3 {[%clk 0:02:49]}  Bb7 {[%clk 0:02:53]} 7. Bg2 {[%clk 0:02:50]}  d6 {[%clk 0:02:40]} 8. O-O {[%clk 0:02:49]}  Nbd7 {[%clk 0:02:40]} 9. b3 {[%clk 0:02:48]}  a5 {[%clk 0:02:36]} 10. Re1 {[%clk 0:02:41]}  Re8 {[%clk 0:02:36]} 11. a3 {[%clk 0:02:33]}  Bxc3 {[%clk 0:02:36]} 12. Bxc3 {[%clk 0:02:34]}  h6 {[%clk 0:02:34]} 13. Bb2 {[%clk 0:02:32]}  Qb8 {[%clk 0:02:33]} 14. Rc1 {[%clk 0:02:19]}  Ra7 {[%clk 0:02:01]} 15. Nh4 {[%clk 0:02:06]}  Bxg2 {[%clk 0:02:00]} 16. Nxg2 {[%clk 0:02:03]}  b5 {[%clk 0:01:08]} 17. c5 {[%clk 0:01:50]}  Rd8 {[%clk 0:01:00]} 18. c6 {[%clk 0:01:43]}  Nb6 {[%clk 0:01:00]} 19. e4 {[%clk 0:01:43]}  d5 {[%clk 0:00:51]} 20. e5 {[%clk 0:01:42]}  Nh7 {[%clk 0:00:51]} 21. Rc5 {[%clk 0:01:40]}  Qa8 {[%clk 0:00:48]} 22. Qc2 {[%clk 0:01:39]}  a4 {[%clk 0:00:47]} 23. Rxb5 {[%clk 0:01:35]}  Ng5 {[%clk 0:00:48]} 24. Re3 {[%clk 0:01:30]}  Ra6 {[%clk 0:00:40]} 25. h4 {[%clk 0:01:29]}  Ne4 {[%clk 0:00:38]} 26. Kh2 {[%clk 0:01:25]}  axb3 {[%clk 0:00:38]} 27. Rexb3 {[%clk 0:01:24]}  Nc4 {[%clk 0:00:39]} 28. f3 {[%clk 0:01:22]}  Ned2 {[%clk 0:00:37]} 29. R3b4 {[%clk 0:01:20]}  Nxf3+ {[%clk 0:00:35]} 30. Kh3 {[%clk 0:01:16]}  Rxc6 {[%clk 0:00:32]} 31. Qb3 {[%clk 0:01:11]}  Nfd2 {[%clk 0:00:25]} 32. Qd3 {[%clk 0:01:05]}  Ne4 {[%clk 0:00:23]} 33. Qb3 {[%clk 0:01:01]}  Nxb2 {[%clk 0:00:15]} 34. Rb8 {[%clk 0:00:57]}  Rxb8 {[%clk 0:00:01]} 35. Rxb8+ {[%clk 0:00:57]}  Qxb8 {[%clk 0:00:01]} 36. Qxb8+ {[%clk 0:00:58]}  Kh7 {[%clk 0:00:02]} 37. Qxb2 {[%clk 0:00:59]}  Rc3 {[%clk 0:00:03]} 38. Kh2 {[%clk 0:00:53]}  Rxg3 {[%clk 0:00:03]} 39. a4 {[%clk 0:00:51]}  Rf3 {[%clk 0:00:01]} 40. a5 {[%clk 0:00:49]}  Rf2 {[%clk 0:00:01]} 41. Qxf2 {[%clk 0:00:47]}  Nxf2 {[%clk 0:00:02]} 42. a6 {[%clk 0:00:47]}  c5 {[%clk 0:00:03]} 43. a7 {[%clk 0:00:46]}  cxd4 {[%clk 0:00:03]} 44. a8=Q {[%clk 0:00:47]}  d3 {[%clk 0:00:04]} 45. Qa2 {[%clk 0:00:43]}  Ne4 {[%clk 0:00:03]} 46. Ne3 {[%clk 0:00:42]}  d2 {[%clk 0:00:03]} 47. Nd1 {[%clk 0:00:42]}  g5 {[%clk 0:00:03]} 48. hxg5 {[%clk 0:00:42]}  hxg5 {[%clk 0:00:04]} 49. Qc2 {[%clk 0:00:43]}  Kh6 {[%clk 0:00:04]} 50. Kg2 {[%clk 0:00:41]}  g4 {[%clk 0:00:04]} 51. Nf2 {[%clk 0:00:41]}  d1=Q {[%clk 0:00:01]} 52. Qxd1 {[%clk 0:00:40]}  Nxf2 {[%clk 0:00:01]} 53. Kxf2 {[%clk 0:00:40]}  Kg5 {[%clk 0:00:02]} 54. Kg3 {[%clk 0:00:40]}  Kf5 {[%clk 0:00:02]} 55. Qxg4+ {[%clk 0:00:40]}  Kxe5 {[%clk 0:00:03]} 56. Qf4# {[%clk 0:00:41]} 1-0


[Site "https://www.chess.com"]

[Event "Titled Tuesday Blitz December 06 Early 2022"]
[White "Ahn, Hongjin"]
[Black "Quizon, Daniel"]
[WhiteFideId "13201492"]
[BlackFideId "5217911"]
[WhiteElo "2182"]
[BlackElo "2385"]
[Result "1-0"]
[Round "03"]
[TimeControl "180+1"]
[Date "2022.12.07"]
[WhiteClock "0:00:13"]
[BlackClock "0:00:56"]

1. e4 {[%clk 0:03:00]}  c5 {[%clk 0:02:59]} 2. Nf3 {[%clk 0:02:57]}  d6 {[%clk 0:02:59]} 3. d4 {[%clk 0:02:56]}  cxd4 {[%clk 0:02:59]} 4. Nxd4 {[%clk 0:02:56]}  Nf6 {[%clk 0:03:00]} 5. Nc3 {[%clk 0:02:56]}  a6 {[%clk 0:03:01]} 6. Bg5 {[%clk 0:02:55]}  e5 {[%clk 0:03:01]} 7. Nb3 {[%clk 0:02:53]}  Be6 {[%clk 0:02:58]} 8. h3 {[%clk 0:02:51]}  Be7 {[%clk 0:02:59]} 9. Qf3 {[%clk 0:02:50]}  Nbd7 {[%clk 0:02:59]} 10. O-O-O {[%clk 0:02:51]}  h6 {[%clk 0:02:59]} 11. Be3 {[%clk 0:02:46]}  Rc8 {[%clk 0:02:59]} 12. g4 {[%clk 0:02:43]}  b5 {[%clk 0:02:59]} 13. Nd5 {[%clk 0:02:39]}  Bxd5 {[%clk 0:02:58]} 14. exd5 {[%clk 0:02:40]}  Qc7 {[%clk 0:02:59]} 15. Rd2 {[%clk 0:02:24]}  e4 {[%clk 0:02:56]} 16. Qd1 {[%clk 0:02:12]}  Ne5 {[%clk 0:02:57]} 17. Kb1 {[%clk 0:02:03]}  Nc4 {[%clk 0:02:37]} 18. Bxc4 {[%clk 0:01:50]}  bxc4 {[%clk 0:02:38]} 19. Nd4 {[%clk 0:01:49]}  c3 {[%clk 0:02:39]} 20. Re2 {[%clk 0:01:39]}  cxb2 {[%clk 0:02:39]} 21. Nf5 {[%clk 0:01:28]}  O-O {[%clk 0:02:37]} 22. g5 {[%clk 0:00:58]}  hxg5 {[%clk 0:02:37]} 23. Bxg5 {[%clk 0:00:57]}  Nxd5 {[%clk 0:02:33]} 24. Qxd5 {[%clk 0:00:41]}  Bxg5 {[%clk 0:02:33]} 25. Rg1 {[%clk 0:00:35]}  Qd8 {[%clk 0:02:24]} 26. Nxg7 {[%clk 0:00:18]}  Rc5 {[%clk 0:02:23]} 27. Qd4 {[%clk 0:00:14]}  Qe7 {[%clk 0:01:10]} 28. Nh5 {[%clk 0:00:14]}  Kh7 {[%clk 0:00:56]} 29. Qg7# {[%clk 0:00:13]} 1-0


[Site "https://www.chess.com"]